Cogmind - Beta 17.1 @@@ ROGUE MODE // 2026.09.10 @ 12:08:17 Player: Godsword Result: Self-destructed Performance ------------- Evolutions (1) 500 Regions Visited (3) 600 Robots Destroyed (6) 30 Value Destroyed (132) 132 Prototype IDs (0) 0 Alien Tech Used (0) 0 Bonus (0) 0 TOTAL SCORE: 1262 Bonus ------- None Cogmind --------- Core Integrity 356/400 Matter 285/300 Energy 100/100 System Corruption 0% Temperature Cool (0) Movement Core (50) Location -9/Materials Parts ------- > --- POWER (1) -------- (None) > --- PROPULSION (3) --- (None) > --- UTILITY (3) ------ Improved Heat Sink > --- WEAPON (2) ------- (None) > --- INVENTORY (5) ---- Light Ion Engine Flight Unit Large Battery (200) Compact Matter Pod (150) Rocket Launcher Peak State ------------ > --- POWER ------------ (None) > --- PROPULSION ------- (None) > --- UTILITY ---------- Improved Heat Sink > --- WEAPON ----------- Plasma Cutter > --- INVENTORY -------- Light Ion Engine Flight Unit Large Battery Compact Matter Pod Rocket Launcher [Rating: 5] Favorites ----------- Power None Propulsion Flight Unit Flight Unit Flight Unit Utility Improved Heat Sink Device Improved Heat Sink Weapon Rocket Launcher Launcher Rocket Launcher Special Weapon Plasma Cutter Build | -11 -10 -10 -9 ------- Run | Yrd Mat Min Mat Slots Evolved 2 | . . . 2 Power . | . . . . Propulsion 1 | . . . 1 Utility 1 | . . . 1 Weapon . | . . . . Parts Attached 4 | . . 3 1 Power . | . . . . Engine . | . . . . Core . | . . . . Reactor . | . . . . Propulsion 1 | . . 1 . Treads . | . . . . Leg . | . . . . Wheel . | . . . . Hover . | . . . . Flight 1 | . . 1 . Utility 1 | . . 1 . Device 1 | . . 1 . Storage . | . . . . Processor . | . . . . Hackware . | . . . . Protection . | . . . . Artifact . | . . . . Weapon 2 | . . 1 1 Energy Gun . | . . . . Energy Cannon . | . . . . Ballistic Gun . | . . . . Ballistic Cannon . | . . . . Launcher 1 | . . 1 . Special Weapon 1 | . . . 1 Impact Weapon . | . . . . Slashing Weapon . | . . . . Piercing Weapon . | . . . . Special Melee Weapon . | . . . . Unidentified Prototypes . | . . . . Parts Lost 1 | . . . 1 Power . | . . . . Propulsion . | . . . . Utility . | . . . . Weapon 1 | . . . 1 Highest Loss Streak 1 | . . . 1 To Critical Strikes . | . . . . Average Backups 3 | . . 3 4 Power . | . . . 1 Propulsion . | . . . . Utility 1 | . . 1 2 Weapon . | . . . 1 Tool/Special . | . . . . Unused Backups 3 | . . . 3 Power 1 | . . . 1 Propulsion . | . . . . Utility 2 | . . . 2 Weapon . | . . . . Tool/Special . | . . . . Average Slot Usage (%) 6 | . . 4 13 Device 3 | . . 1 11 Launcher 1 | . . 2 . Peak Build Rating 5 | . . 3 5 Average Rating 1 | . . . 3 On Entrance . | . . . 3 Avg Prop Armor Cover (%) . | . . . . Naked Turns 193 | . 40 153 . Heaviest Build 4 | . . 4 2 Greatest Support 4 | 3 3 4 4 Greatest Overweight (x) 1 | . . 1 . Average Overweight (x) . | . . . . Largest Inventory Capacity 5 | 5 5 5 5 Average Capacity 5 | 5 5 5 5 Most Carried 5 | . . 5 5 Average Carried 3 | . . 3 4 Final Capacity 5 | 5 5 5 5 Final Carried 5 | . . 5 5 Class Distribution -------------------- 100% | Mutant Dominant Class ---------------- Mutant | -10/Materials Mutant | -10/Mines Mutant | -9/Materials Resources | -11 -10 -10 -9 ----------- Run | Yrd Mat Min Mat Matter Collected 284 | 200 . 84 . Remotely . | . . . . Salvage Created 87 | . . 87 . Parts 7 | . . 7 . Haulers Intercepted . | . . . . Recyclers Shooed . | . . . . Parts Field Recycled . | . . . . Retrieved Matter . | . . . . Parts Self-Destructed . | . . . . Prevented . | . . . . Parts Restored . | . . . . Kills | -11 -10 -10 -9 ------- Run | Yrd Mat Min Mat Combat Hostiles Destroyed 5 | . . 5 . AOE 5 | . . 5 . Classes Destroyed 3 | . . 3 . Worker 1 | . . 1 . Swarmer 3 | . . 3 . Grunt 2 | . . 2 . Best Kill Streak 3 | . . 3 . Combat Bots Only 3 | . . 3 . Max Kills in Single Turn 3 | . . 3 . Gunslinging . | . . . . Exploded 3 | . . 3 . Melee . | . . . . Uniques/NPCs Destroyed . | . . . . Combat | -11 -10 -10 -9 -------- Run | Yrd Mat Min Mat Hostile Shots Fired 31 | . 5 17 9 Missed 8 | . 1 5 2 Hits 23 | . 4 12 7 Projectile 23 | . 4 12 7 Damage Taken 273 | . 45 139 89 Core 195 | . 45 106 44 Absorbed by Shields . | . . . . Core Remaining (%) 69 | 100 . 39 . Volleys Fired 4 | . . 4 . Largest 1 | . . 1 . Hottest 33 | . . 33 . Shots Fired 4 | . . 4 . Gun . | . . . . Cannon . | . . . . Launcher 4 | . . 4 . Special . | . . . . Kinetic . | . . . . Thermal . | . . . . Explosive 4 | . . 4 . Electromagnetic . | . . . . Robot Hit Streak 1 | . . 1 . Robot Miss Streak 1 | . . 1 . Penetration Max . | . . . . Secondary Targets . | . . . . Shots Hit Robots 2 | . . 2 . Core Hits 8 | . . 8 . Critical Kills . | . . . . Critical Parts Destroyed . | . . . . Critical Strikes . | . . . . Melee Attacks . | . . . . Impact . | . . . . Slashing . | . . . . Piercing . | . . . . Sneak Attacks . | . . . . Combat Hostiles . | . . . . Follow-up Attacks . | . . . . Damage Inflicted 370 | . . 370 . Guns . | . . . . Cannons . | . . . . Explosions 370 | . . 370 . Melee . | . . . . Ramming . | . . . . Kinetic . | . . . . Thermal 55 | . . 55 . Explosive 315 | . . 315 . Electromagnetic . | . . . . Impact . | . . . . Slashing . | . . . . Piercing . | . . . . Highest Corruption . | . . . . Average Corruption . | . . . . Corruption Purged . | . . . . Corruption Blocked . | . . . . Overload Shots . | . . . . Overflow Damage . | . . . . Projectiles . | . . . . Explosions . | . . . . Melee . | . . . . Knockbacks . | . . . . Impact . | . . . . Kinetic . | . . . . Secondary . | . . . . Self-Inflicted Damage . | . . . . Shots . | . . . . Rammed . | . . . . Targets Rammed . | . . . . Kicked . | . . . . Crushed . | . . . . Highest Temperature 6 | . . 6 . Average Temperature 6 | . . 6 . Received Heat Transfer 126 | . 27 66 33 Siege Activations . | . . . . Martial Activations . | . . . . Shielding Activations . | . . . . Robots Disrupted . | . . . . Combat Hostiles . | . . . . Robots Corrupted . | . . . . Combat Hostiles . | . . . . Parts Fried . | . . . . Impact Corruptions . | . . . . Robots Melted . | . . . . Combat Hostiles . | . . . . Parts Melted 1 | . . 1 . Heat Transferred 50 | . . 50 . Parts Sabotaged . | . . . . Parts Stolen . | . . . . Parts Stripped . | . . . . Power Chain Reactions . | . . . . Alert | -11 -10 -10 -9 ------- Run | Yrd Mat Min Mat Maximum Alert Level 1 | . . 1 . Low Security (%) 92 | 100 100 87 100 Level 1 7 | . . 12 . Level 2 . | . . . . Level 3 . | . . . . Level 4 . | . . . . Level 5 . | . . . . High Security . | . . . . Max Security . | . . . . Peak Influence 225 | . . 225 88 Initial 83 | . . . 83 Average 57 | . . 61 78 Influence Increases 305 | . . 275 30 Destroy 0b10 Robot/C 100 | . . 100 . Destroy 0b10 Robot/NC 5 | . . 5 . Destroy Leader 20 | . . 20 . Disable Machine 30 | . . 30 . Destroy Structure 30 | . . 30 . Partial Spotted 30 | . . . 30 Lose Combat Pursuer 90 | . . 90 . Influence Decreases 242 | . . 60 182 Entered New Map 132 | . . . 132 Time Decay 100 | . . 60 40 Lost Part 10 | . . . 10 Squads Dispatched 1 | . 1 . . Investigation . | . . . . Extermination . | . . . . Reinforcement 1 | . 1 . . Assault . | . . . . Garrison . | . . . . Intercept . | . . . . Searches Triggered . | . . . . Construction Impeded . | . . . . Haulers Reinforced . | . . . . Active Scanning Responses . | . . . . Cargo Convoy Interrupts . | . . . . Stealth | -11 -10 -10 -9 --------- Run | Yrd Mat Min Mat Distress Signals . | . . . . Communications Jammed . | . . . . Distress Signals . | . . . . Times Spotted 22 | . 6 13 3 Peak Tracking Total 7 | . 7 5 2 Tactical Retreats 3 | . . 3 . Traps | -11 -10 -10 -9 ------- Run | Yrd Mat Min Mat Traps Triggered . | . . . . Indirectly . | . . . . Trap Hack Attempts . | . . . . Triggered . | . . . . Disarmed . | . . . . Reprogrammed . | . . . . Reused . | . . . . Traps Extracted . | . . . . Installed . | . . . . Triggered . | . . . . Machines | -11 -10 -10 -9 ---------- Run | Yrd Mat Min Mat Machines Disabled 2 | . . 2 . Max in Single Turn 2 | . . 2 . Machines Repaired . | . . . . Machines Dismantled . | . . . . Machines Sabotaged . | . . . . Overloaded Fab Kills . | . . . . Hacking | -11 -10 -10 -9 --------- Run | Yrd Mat Min Mat Machines Accessed 1 | . . . 1 Terminals 1 | . . . 1 Fabricators . | . . . . Repair Stations . | . . . . Recycling Units . | . . . . Scanalyzers . | . . . . Garrison Access . | . . . . Total Hacks 2 | . . . 2 Successful . | . . . . Failed 2 | . . . 2 Catastrophic 1 | . . . 1 Database Lockouts . | . . . . Manual 2 | . . . 2 Terminals 2 | . . . 2 Fabricators . | . . . . Repair Stations . | . . . . Recycling Units . | . . . . Scanalyzers . | . . . . Garrison Access . | . . . . Terminal Hacks . | . . . . Fabricator Hacks . | . . . . Repair Station Hacks . | . . . . Recycling Unit Hacks . | . . . . Scanalyzer . | . . . . Garrison Access Hacks . | . . . . Unauthorized Hacks . | . . . . Terminals . | . . . . Fabricators . | . . . . Repair Stations . | . . . . Recycling Units . | . . . . Scanalyzers . | . . . . Garrison Access . | . . . . Data Cores Recovered . | . . . . Used . | . . . . Hacking Detections 1 | . . . 1 Full Trace Events . | . . . . Feedback Events . | . . . . Feedback Blocked . | . . . . Robot Schematics Acquired . | . . . . Robots Built . | . . . . Authchips . | . . . . Time . | . . . . Total Robot Build Rating . | . . . . Part Schematics Acquired . | . . . . Parts Built . | . . . . Authchips . | . . . . Time . | . . . . Total Part Build Rating . | . . . . Part Studies Acquired . | . . . . Parts Repaired . | . . . . Time . | . . . . Parts Recycled . | . . . . Recycled Matter . | . . . . Retrieved Matter . | . . . . Retrieved Components . | . . . . Parts Scanalyzed . | . . . . Part Schematics Acquired . | . . . . Parts Damaged . | . . . . Bothacking | -11 -10 -10 -9 ------------ Run | Yrd Mat Min Mat Used RIF Installer . | . . . . Robots Hacked . | . . . . Non-combat . | . . . . Combat . | . . . . Robot Hacks Applied . | . . . . Relay Couplers Released . | . . . . Fabnet Peak Effective % . | . . . . Robots Rewired . | . . . . Allies Hacked . | . . . . Hacks Repelled . | . . . . Allies | -11 -10 -10 -9 -------- Run | Yrd Mat Min Mat Total Allies . | . . . . Largest Group . | . . . . Highest-Rated Group . | . . . . Highest-Rated Ally . | . . . . Total Orders . | . . . . Ally Attacks . | . . . . Total Damage . | . . . . Kills . | . . . . Allies Corrupted . | . . . . Allies Melted . | . . . . Intel | -11 -10 -10 -9 ------- Run | Yrd Mat Min Mat Active Infowar (turns) . | . . . . Robot Analysis Total . | . . . . Derelict Logs Recovered . | . . . . Drone Launches . | . . . . Drone Recoveries . | . . . . Exploration | -11 -10 -10 -9 ------------- Run | Yrd Mat Min Mat Turns Passed 359 | 12 40 211 96 Spaces Moved 543 | 23 79 287 154 Core 509 | 23 79 273 134 Treads . | . . . . Legs . | . . . . Wheels . | . . . . Hover . | . . . . Flight 34 | . . 14 20 Fastest Speed 40 | 50 50 40 40 Average Speed 50 | 50 50 50 48 Slowest Speed 100 | 50 50 100 50 Overloaded Moves . | . . . . Propulsion Burnouts . | . . . . Robots Hopped 3 | . . . 3 Potential Cave-ins . | . . . . Cave-ins Triggered . | . . . . Exploration Rate (%) 26 | 4 32 53 15 Regions Visited 3 Branch Regions 1 Pre-discovered Areas . | . . . . Known Exits Taken . | . . . . Unknown Exits Taken 3 | 1 1 1 . Scrap Searched 1 | . . 1 . Spaces Dug . | . . . . Terrain Destroyed 47 | . . 47 . Melee . | . . . . Projectile . | . . . . AOE 47 | . . 47 . Terrain Rammed . | . . . . Walls Destroyed . | . . . . Machines Disabled . | . . . . Actions | -11 -10 -10 -9 --------- Run | Yrd Mat Min Mat Total 619 | 22 78 348 171 Wait 64 | . . 47 17 Move 536 | 22 78 286 150 Hop 1 | . . . 1 Pick Up 4 | . . 4 . Fast Attach 3 | . . 2 1 Attach 3 | . . 2 1 Detach 4 | . . 3 1 Swap . | . . . . Drop . | . . . . Fire 4 | . . 4 . Melee . | . . . . Ram . | . . . . Kick . | . . . . Crush . | . . . . Escape Stasis . | . . . . Rewire . | . . . . Trap . | . . . . Miscellaneous . | . . . . Route ------- -11/Scrapyard -10/Materials -10/Mines -9/Materials History --------- Turn | Location | Event 3 | -11/Scrapyard | Discovered new exit (range 16) 13 | -11/Scrapyard | Entered Materials 48 | -10/Materials | Discovered new exit (range 11) 53 | -10/Materials | Entered Mines 175 | -10/Mines | Received a Rocket Launcher from a helpful Derelict 237 | -10/Mines | Core integrity fell below 50% 263 | -10/Mines | Discovered new exit (range 3) 264 | -10/Mines | Entered Materials 264 | -9/Materials | Evolved 2 slots: Propulsion x1, Utility x1 305 | -9/Materials | Build established: Mutant 360 | -9/Materials | Self-destructed Last Messages --------------- 00199_ S-10 Pest destroyed. 00208_ Acquired Lgt. Ion Engine. 00225_ K-01 Serf collects debris. 00234_ K-01 Serf destroyed. 00238_ G-34 Mercenary destroyed. 00238_ G-47 Trooper destroyed. 00243_ Acquired 8 matter. 00243_ Extracted 56 matter. 00246_ The unstable cave ceiling collapses. 00246_ Acquired Imp. Heat Sink. 00247_ Acquired 10 matter. 00263_ EXIT=FOUND PARAMETERS=PROPULSION+1,UTILITY+1 LOCATION=UNKNOWN GOAL=ESCAPE 00329_ Connecting with Terminal... 00329_ Current location identified: Materials 00338_ Acquired Plasma Cutter. 00346_ Plasma Cutter destroyed. 00350_ K-01 Serf collects debris. Map ----- +----------------------------------------------------+ | | | | | | | | | | | | | | | | | | | | | | | | | | | | | | | | | | | | | ???????????#####????????????????????? | | ??????????# #????????????????????? | | #####?????# #????????????????????? | | # ###### #????????????????????? | | # # + #???????#######??????? | | # # # ######### ######## | | # # ##/#### # | | # + @ " # | | # # #### = # | | # # #??######## #### # | | # # g #?????????###/###??# # | | # # ##### #???????????? ???# # | | ###### #???# ####??????????""" ?# + | | ?????# #???# #??????????""" ?# # | | ?????# #####+## #???????????"" ## # | | ?????# # # #???????????????# # | | ?????# # # #???????????????# # | | ?????# #""" # #???????????????# # | | ?????# #""" # #???????????????# # | | ?????? #""" # #???????????????# # | | ?????? # # #???????????????# # | | ?????? ######## ################# / | | ?????? ???????# # | | ?????? ???????#### ################ # | | ?????????????????# #????# !! # # | | ?????????????????# #????? "T" ! + + | | ?????????????????# #???# # # | | ?????????????????# #???## ??# # | | ?????????????????# #????######????# # | | ?????????????????# #??????????#####+# | | ?????????????????# #??????????# | | ????????????????## ##?????????# """ | +----------------------------------------------------+ Best States ------------- Heat Dissipation 28 Energy Generation 5 Energy Capacity 100 Matter Stores 300 Matter Capacity 300 Sight Range 16 Terrain Scan Density 10 Evasion (%) 62 Item Schematics ----------------- None Robot Schematics ------------------ None Fabricated ------------ Nothing Repaired ---------- Nothing Studied --------- None Alien Tech Used ----------------- None Achievements -------------- None Challenges ------------ None Game ------ Seed ChainIntegratedPropulsion Manual? 0 Play Time 00:05:02 Cumulative 41.6 hours Start 2026.09.09 @ 13:13:36 End 2026.09.10 @ 12:08:17 Sessions 1 Manual Loads 0 Difficulty Rogue Special Mode None Game No. 105 Rogue 105 Adventurer 0 Explorer 0 Win Type - Total 3 Types 3/0/0/0/0/0/0/0/0/0 Lore% 40 Gallery% 35 Achievement% 44 Wizard Run 0 Options --------- Layout 2 ASCII 0 Keyboard 0 Movement Arrows Keybinds 0 Fullscreen 1 Font 16/SmallcapsGlow Map View 50x49 Zoom Use 0% Tactical HUD 1 Map Filters NONE Filters NONE Steam SD RUN: cd1230fa-b572-4245-bd46-8262f4bd3219